bitfinex-derivatives/quotes_ETHF0:USTF0_20251117
["timestamp","ask_amount","ask_price","bid_price","bid_amount"]
[1763423490718,3.2078,3024.3,3024.0,0.14406278]
[1763423490914,3.21173566,3024.3,3024.0,0.14406278]
[1763423491118,0.53633,3024.2,3024.0,0.00496278]
[1763423491313,3.21173566,3024.3,3024.0,0.14406278]
[1763423491623,0.53641,3023.7,3023.2,3.2078]
[1763423491923,0.53651,3023.1,3022.6,3.2078]
[1763423492119,0.53647,3023.4,3022.6,3.2078]
[1763423492329,0.53648,3023.3,3022.6,3.2078]
[1763423492622,0.00496278,3023.3,3022.6,3.21276278]
[1763423492830,3.2078,3023.0,3022.6,0.0078378]
[1763423495821,3.2078,3023.0,3022.9,0.2296]
[1763423496823,0.00496278,3023.3,3023.0,0.1391]
[1763423497027,0.00496278,3023.3,3023.2,0.2296]
[1763423498026,0.00496278,3023.3,3023.0,0.1391]
[1763423498229,0.54145278,3023.3,3023.0,0.1391]
[1763423498429,0.00496278,3023.3,3022.6,0.0078378]
[1763423498625,0.54144278,3023.3,3022.6,0.0078378]
[1763423498929,0.00496278,3023.3,3023.0,0.1391]
[1763423499225,1.35684802,3023.3,3023.0,0.1391]
[1763423499430,0.54144278,3023.3,3023.0,0.1391]
[1763423499731,0.00496278,3023.3,3023.0,0.1391]
[1763423499941,0.82036037,3023.3,3023.0,0.1391]
[1763423500729,0.5365,3023.2,3022.6,0.0078378]
[1763423500921,3.2078,3022.9,3022.6,0.0078378]
[1763423501623,3.2078,3022.9,3022.8,0.2296]
[1763423502925,3.21276278,3023.3,3023.2,0.2296]
[1763423503228,4.0287434,3023.3,3023.2,0.2296]
[1763423503432,3.21276278,3023.3,3023.2,0.2296]
[1763423503626,3.21173566,3024.3,3024.1,0.2296]
[1763423503825,3.44183566,3024.3,3024.2,0.2296]
[1763423504230,3.21173566,3024.3,3024.2,0.2296]
[1763423504532,3.44183566,3024.3,3024.2,0.2296]
[1763423504735,3.21173566,3024.3,3024.2,0.2296]
[1763423505428,3.44183566,3024.3,3024.2,0.50147936]
[1763423505634,3.44183566,3024.3,3024.2,0.2296]
[1763423506024,3.44183566,3024.3,3023.7,44.0078]
[1763423506231,3.44183566,3024.3,3023.7,52.0378]
[1763423506232,0.1518,3024.0,3023.7,52.0378]
[1763423506629,3.21173566,3024.3,3023.7,52.0378]
[1763423506835,3.21173566,3024.3,3023.7,11.2378]
[1763423507133,3.21173566,3024.3,3023.7,10.1958]
[1763423507335,0.23403566,3024.3,3024.2,3.2078]
[1763423507737,0.00393566,3024.3,3024.2,3.4374]
[1763423509039,0.23403566,3024.3,3024.2,3.2078]
[1763423510733,0.23403566,3024.3,3024.0,0.27426237]
[1763423510933,0.2301,3023.9,3023.8,3.2078]
[1763423511137,0.00393566,3024.3,3024.2,0.2296]
[1763423511341,0.00393566,3024.3,3024.2,3.4374]
[1763423513242,0.00393566,3024.3,3024.2,11.4654]
[1763423517648,0.00393566,3024.3,3024.2,3.4374]
[1763423517849,0.23403566,3024.3,3024.2,3.4475]
[1763423518054,0.00393566,3024.3,3024.2,3.4475]
[1763423518348,0.24523566,3024.3,3024.2,3.2078]
[1763423519150,0.24523566,3024.3,3024.2,3.4475]
[1763423520143,0.00393566,3024.3,3024.2,3.4475]
[1763423520555,3.566e-05,3024.3,3024.2,3.4475]
[1763423524156,3.566e-05,3024.3,3024.2,11.4735]
[1763423525454,3.566e-05,3024.3,3024.2,11.4725]
[1763423526761,0.24133566,3024.3,3024.2,3.2078]
[1763423528558,3.566e-05,3024.3,3024.2,3.2078]
[1763423529447,3.2078,3025.4,3024.2,9.2078]
[1763423529649,3.4491,3025.4,3025.3,0.2397]
[1763423530050,0.2413,3025.1,3025.0,3.2078]
[1763423530455,3.2078,3025.4,3025.0,3.5842]
[1763423530653,3.21163048,3025.4,3025.0,3.58738617]
[1763423531854,0.2413,3025.1,3025.0,3.21098617]
[1763423532047,0.2413,3025.1,3025.0,3.45068617]
[1763423532263,0.81807517,3025.3,3025.0,3.45068617]
[1763423532466,0.81807517,3025.3,3025.2,0.2397]
[1763423532958,1.05937517,3025.3,3025.2,0.2397]
[1763423534760,0.81807517,3025.3,3025.2,0.2397]
[1763423535752,0.00383048,3025.4,3025.3,0.2397]
[1763423536762,0.24513048,3025.4,3025.3,8.2637]
[1763423537264,0.2413,3025.1,3025.0,3.58738617]
[1763423537462,0.00383048,3025.4,3025.3,0.2397]
[1763423537658,0.53607,3025.3,3025.0,3.34768617]
[1763423537960,0.24513048,3025.4,3025.0,11.37168617]
[1763423538160,1.06693356,3025.4,3025.0,11.37168617]
[1763423538364,1.60298356,3025.4,3025.0,11.37168617]
[1763423538562,0.78118048,3025.4,3025.0,11.37168617]
[1763423538958,0.24513048,3025.4,3025.0,11.37168617]
[1763423539161,0.78119048,3025.4,3025.0,11.37168617]
[1763423539464,0.78118048,3025.4,3025.0,11.37168617]
[1763423539654,0.2413,3025.1,3025.0,11.37168617]
[1763423539852,0.2413,3025.1,3025.0,11.61178617]
[1763423540569,0.2413,3025.1,3025.0,11.47508617]
[1763423540867,0.7774,3025.1,3025.0,0.00318617]
[1763423541064,1.59921206,3025.1,3025.0,0.00318617]
[1763423541265,2.78415094,3025.1,3025.0,0.00318617]
[1763423541469,2.78415094,3025.1,3024.6,3.2078]
[1763423541470,0.78658,3024.7,3024.6,3.2078]
[1763423541862,1.60839206,3024.7,3024.6,3.2078]
[1763423542470,1.60839206,3024.7,3024.6,3.2118934]
[1763423542670,1.07221206,3024.7,3024.6,3.2118934]
[1763423542859,1.07221206,3024.7,3024.6,3.4519934]
[1763423543063,1.07638131,3024.9,3024.8,0.2401]
[1763423544572,0.82598131,3025.1,3024.8,0.2401]
[1763423544768,1.07638131,3025.0,3024.9,0.2401]
[1763423544967,1.07638131,3025.0,3024.6,3.2118934]
[1763423545275,0.82598131,3024.9,3024.8,0.2401]
[1763423545767,0.82598131,3025.1,3024.8,0.2401]
[1763423546068,0.82598131,3025.0,3024.9,0.2401]
[1763423546270,3.2078,3025.2,3025.1,0.2401]
[1763423546472,4.03357459,3025.2,3025.1,0.2401]
[1763423546763,4.82006459,3025.2,3025.1,0.2401]
[1763423546967,1.61226459,3025.2,3025.1,0.2401]
[1763423547359,0.82577459,3025.2,3025.1,0.2401]
[1763423547571,1.60226459,3025.2,3024.6,3.2118934]
[1763423547770,0.82577459,3025.1,3025.0,0.2505]
[1763423547965,0.82577459,3025.2,3025.0,0.2505]
[1763423548170,1.06617459,3025.2,3025.1,0.2505]
[1763423548366,0.82577459,3025.3,3025.2,0.2505]
[1763423548572,1.36569245,3025.4,3025.0,3.3453]
[1763423548871,0.82581197,3025.3,3025.0,3.3453]
[1763423549073,1.06621197,3025.3,3025.2,0.2505]
[1763423549369,1.06621197,3025.3,3025.0,3.3453]
[1763423549370,0.2404,3025.1,3025.0,3.5958]
[1763423549768,1.60251848,3025.1,3025.0,0.2505]
[1763423549970,1.06641848,3025.1,3024.6,3.5800934]
[1763423550164,0.2404,3025.1,3024.6,3.5800934]
[1763423550366,0.77653,3025.0,3024.9,0.2505]
[1763423550969,0.2404,3025.0,3024.9,3.4583]
[1763423552174,0.77652,3025.0,3024.9,3.4583]
[1763423552376,0.2404,3025.0,3024.9,3.4583]
[1763423553369,0.00383048,3025.4,3025.3,0.2505]
[1763423553569,0.24423048,3025.4,3025.3,0.2505]
[1763423553977,1.07234044,3025.4,3025.3,0.2505]
[1763423554382,0.83194044,3025.4,3025.3,0.2505]
[1763423554679,0.00383048,3025.4,3025.3,0.2505]
[1763423557175,0.00383048,3025.4,3025.3,3.4583]
[1763423558480,0.24423048,3025.4,3025.3,3.4583]
[1763423558884,0.00383048,3025.4,3025.3,3.4583]
[1763423559478,0.24423048,3025.4,3025.3,3.4583]
[1763423559980,0.24423048,3025.4,3025.3,3.2078]
[1763423560378,1.07235373,3025.4,3025.3,3.2078]
[1763423561085,0.2404,3024.9,3024.8,3.4583]
[1763423561478,0.53607,3025.3,3024.8,3.4583]
[1763423561680,1.06856422,3025.2,3025.1,0.2505]
[1763423561985,0.2404,3025.2,3025.1,0.2505]
[1763423562181,1.06856422,3025.2,3025.1,0.2505]
[1763423562484,0.2404,3025.2,3025.1,0.2505]
[1763423563685,1.60465422,3025.2,3024.8,3.2078]
[1763423563875,1.06856422,3025.1,3025.0,0.2505]
[1763423564079,0.2404,3025.1,3025.0,0.2505]
[1763423564284,0.2404,3025.1,3025.0,0.388]
[1763423564490,1.3680547,3025.4,3025.0,0.388]
[1763423564791,1.36423422,3025.3,3025.0,0.388]
[1763423564986,1.06856422,3025.2,3025.1,0.2505]
[1763423565183,0.77654,3024.9,3024.8,3.2078]
[1763423565390,0.2404,3024.7,3024.6,0.0040934]
[1763423565694,0.2404,3024.7,3024.6,0.2545934]
[1763423565877,1.61093451,3024.7,3024.6,0.0040934]
[1763423566078,1.07475451,3024.7,3024.6,0.0040934]
[1763423566278,1.07475451,3024.7,3024.6,0.2545934]
[1763423566575,1.33977676,3025.0,3024.7,0.2505]
[1763423566882,0.2404,3025.0,3024.9,0.2505]
[1763423567385,1.07641819,3025.2,3025.1,0.2505]
[1763423569383,1.07646177,3025.2,3025.1,0.2505]
[1763423569786,0.2404,3025.2,3025.1,0.2505]
[1763423570691,0.83989225,3025.4,3025.3,0.2505]
[1763423571391,0.00383048,3025.4,3025.3,0.2505]
[1763423572087,0.83989225,3025.4,3025.3,0.2505]
[1763423572281,0.00383048,3025.4,3025.3,0.2505]
[1763423572791,0.24423048,3025.4,3025.3,0.2505]
[1763423573287,0.2404,3024.9,3024.8,3.4583]
[1763423573482,0.00383048,3025.4,3024.8,3.4583]
[1763423573483,0.83606177,3025.2,3024.8,3.4583]
[1763423573686,0.53988048,3025.4,3024.8,3.4583]
[1763423573880,0.83859802,3025.3,3024.8,3.4583]
[1763423574079,1.37468802,3025.2,3024.8,3.4583]
[1763423574284,0.83859802,3025.1,3024.8,3.4583]
[1763423574484,0.53988048,3025.4,3024.8,3.4583]
[1763423574691,0.83872696,3025.3,3024.8,3.4583]
[1763423575684,1.07912696,3025.2,3025.1,0.2505]
[1763423575885,0.2404,3025.2,3025.1,0.2505]
[1763423576580,0.83872696,3025.3,3025.1,0.2505]
[1763423576784,0.00383048,3025.4,3025.3,0.2443]
[1763423576987,0.25143048,3025.4,3025.3,0.2443]
[1763423577187,0.2476,3025.1,3025.0,0.3825]
[1763423577494,0.2476,3025.1,3025.0,0.2443]
[1763423578191,0.2476,3024.9,3024.8,3.2078]
[1763423578493,0.2476,3024.9,3024.8,3.4521]
[1763423578690,0.00383048,3025.4,3024.8,3.4521]
[1763423579086,0.84494034,3025.4,3024.8,3.4521]
[1763423579496,1.09254034,3025.4,3025.3,0.2443]
[1763423579889,0.25143048,3025.4,3025.3,3.4521]
[1763423580085,0.25143048,3025.4,3025.2,3.2078]
[1763423580086,1.09254034,3025.4,3025.2,3.2078]
[1763423580293,0.84494034,3025.4,3025.3,0.2443]
[1763423580494,0.00383048,3025.4,3025.3,0.2443]
[1763423580788,0.25143048,3025.4,3025.3,0.2443]
[1763423580996,0.2476,3025.3,3025.2,3.2078]
[1763423581197,0.2476,3024.9,3024.8,3.4521]
[1763423581699,0.53989048,3025.4,3024.8,3.4521]
[1763423581901,1.09093944,3025.3,3025.2,0.2443]
[1763423582594,0.2476,3025.3,3025.2,0.2443]
[1763423585398,0.2476,3025.3,3024.8,3.2078]
[1763423586091,1.09093944,3025.3,3024.8,3.2078]
[1763423586493,1.09093944,3025.3,3024.6,0.0040934]
[1763423586494,0.84333944,3025.2,3025.0,0.1382]
[1763423586789,0.25143048,3025.4,3025.3,0.2443]
[1763423587000,0.00383048,3025.4,3025.3,0.2443]
[1763423587192,0.84950273,3025.4,3025.3,0.2443]
[1763423587389,0.00383048,3025.4,3025.3,0.2443]
[1763423587798,0.84950273,3025.4,3025.3,0.2443]
[1763423587999,0.00383048,3025.4,3025.3,0.2443]
[1763423588897,0.84950273,3025.4,3025.3,0.2443]
[1763423589095,0.2476,3025.2,3025.1,3.4521]
[1763423589893,1.09710273,3025.4,3025.3,0.2443]
[1763423590095,0.84950273,3025.4,3025.3,0.2443]
[1763423590299,0.00383048,3025.4,3025.3,0.2443]
[1763423593702,0.84522667,3025.9,3025.8,0.2443]
[1763423594002,3.4554,3026.4,3026.3,0.2443]
[1763423594207,4.29794428,3026.4,3026.0,0.14316278]
[1763423594404,0.2476,3026.1,3026.0,0.00496278]
[1763423594599,0.25146878,3026.1,3026.0,0.24926278]
[1763423595601,0.25146878,3026.1,3026.0,0.38746278]
[1763423596198,0.00386878,3026.1,3026.0,0.38746278]
[1763423597805,0.25146878,3026.1,3026.0,0.38746278]
[1763423598112,0.78739878,3026.1,3026.0,0.00496278]
[1763423598407,1.62891562,3026.1,3026.0,0.00496278]
[1763423599105,1.09298562,3026.1,3026.0,0.00496278]
[1763423599310,0.25146878,3026.1,3026.0,0.00496278]
[1763423600008,1.09298562,3026.1,3026.0,0.00496278]
[1763423600403,1.09298562,3026.1,3026.0,0.24036278]
[1763423600603,0.25146878,3026.1,3026.0,0.24036278]
[1763423601506,0.00386878,3026.1,3026.0,0.38436278]
[1763423603109,0.24206878,3026.1,3026.0,0.24036278]
[1763423603322,0.24206878,3026.1,3026.0,0.38436278]
[1763423604005,0.24206878,3026.1,3026.0,0.24036278]
[1763423604908,0.24206878,3026.1,3026.0,0.00496278]
[1763423605611,0.2382,3025.4,3025.3,3.2078]
[1763423605816,0.2382,3025.4,3025.3,3.4432]
[1763423606606,0.00496278,3025.7,3025.6,0.2354]
[1763423606808,0.24406278,3025.7,3025.6,0.2354]
[1763423609111,1.08925029,3025.7,3025.6,0.2354]
[1763423609308,0.24406278,3025.7,3025.6,0.2354]
[1763423610513,0.00496278,3025.7,3025.6,0.2354]
[1763423613211,0.00496278,3025.7,3025.3,3.4436]
[1763423613512,0.24406278,3025.7,3025.6,0.2358]
[1763423614819,0.00496278,3025.7,3025.6,0.2358]
[1763423615222,0.24406278,3025.7,3025.6,0.2358]
[1763423617116,0.00496278,3025.7,3025.6,0.2358]
[1763423617325,0.24406278,3025.7,3025.6,0.2358]
[1763423617825,0.00496278,3025.7,3025.6,0.2358]
[1763423620315,0.00386878,3026.1,3026.0,0.3817]
[1763423620511,0.85046218,3026.1,3026.0,0.3817]
[1763423620717,0.00386878,3026.1,3026.0,0.3817]
[1763423624030,0.2391,3026.0,3025.9,3.2078]
[1763423624211,0.00386878,3026.1,3026.0,0.3817]
[1763423628725,0.3811,3026.0,3025.9,3.4436]
[1763423628925,0.2391,3026.0,3025.9,3.4436]
[1763423629230,0.3811,3026.0,3025.9,3.2078]
[1763423629724,0.3811,3026.0,3025.5,3.3537]
[1763423630029,0.24296878,3026.1,3026.0,0.2358]
[1763423630229,0.24296878,3026.1,3025.5,3.3537]
[1763423630230,0.142,3026.0,3025.5,3.3537]
[1763423630527,0.2391,3025.6,3025.5,3.5895]
[1763423630922,0.98412666,3026.0,3025.5,3.5895]
[1763423631127,0.142,3026.0,3025.5,3.5895]
[1763423632526,0.2391,3025.6,3025.5,3.5895]
[1763423635422,1.08355404,3025.9,3025.8,0.2358]
[1763423635626,0.2391,3025.6,3025.5,3.4436]
[1763423636719,0.1482,3025.5,3025.0,3.35096278]
[1763423637424,1.52898533,3025.5,3025.0,3.35096278]
[1763423637623,0.84474533,3025.4,3025.0,3.35096278]
[1763423637818,1.08884533,3025.3,3025.2,0.2337]
[1763423638024,5.20898464,3026.0,3025.0,3.35096278]
[1763423638025,1.18807676,3025.9,3025.3,0.2337]
[1763423638230,0.2441,3025.4,3025.3,0.2337]
[1763423638735,1.08897336,3025.4,3025.3,0.2337]
[1763423639626,0.2441,3025.4,3025.3,0.2337]
[1763423641322,1.08897336,3025.7,3025.6,0.2337]
[1763423641631,0.1482,3025.5,3025.0,3.35096278]
[1763423642131,0.2441,3024.7,3024.6,3.2118934]
[1763423642339,0.78028,3024.7,3024.6,0.0040934]
[1763423642528,1.62700418,3024.7,3024.6,0.0040934]
[1763423643531,0.84672418,3024.7,3024.6,0.2377934]
[1763423643734,3.4519,3024.9,3024.8,0.2337]
[1763423644038,0.2441,3024.7,3024.6,0.2377934]
[1763423644636,0.2441,3024.4,3024.3,0.00496278]
[1763423645736,0.2441,3024.4,3024.3,0.00884799]
[1763423646646,3.98813,3024.4,3024.3,0.00884799]
[1763423647141,3.4519,3024.4,3024.3,0.00884799]
[1763423648036,3.98813,3024.4,3024.3,0.00884799]
[1763423648236,3.4519,3024.4,3024.3,0.00884799]
[1763423649443,3.4519,3024.4,3024.3,0.24254799]
[1763423651934,0.2441,3024.4,3024.3,0.24254799]
[1763423654050,3.2078,3024.5,3024.4,0.2337]
[1763423654746,0.2441,3024.4,3024.3,0.00884799]
[1763423654947,0.2441,3024.4,3024.3,0.24254799]
[1763423655340,0.2441,3024.4,3024.3,0.00884799]
[1763423655541,0.78033,3024.4,3024.3,0.00884799]
[1763423656140,0.78042,3023.9,3023.8,3.2078]
[1763423656538,0.1482,3024.0,3023.8,3.4415]
[1763423656737,0.53627,3024.2,3023.9,0.2337]
[1763423656937,0.2441,3024.0,3023.9,0.2337]
[1763423657152,0.24714129,3024.0,3023.9,0.23653093]
[1763423657953,0.24714129,3024.0,3023.9,0.51032034]
[1763423658448,0.78425,3023.7,3023.6,0.00496278]
[1763423658653,3.99205,3023.7,3023.6,0.00496278]
[1763423659350,3.4557,3023.7,3023.6,0.00757548]
[1763423659651,0.2479,3023.7,3023.6,0.24857548]
[1763423659854,0.39744129,3024.0,3023.9,0.241]
[1763423662361,0.00304129,3024.0,3023.9,0.241]
[1763423666451,3.4557,3024.5,3024.4,0.241]
[1763423666653,4.45185089,3024.5,3024.4,0.241]
[1763423667448,4.45499416,3024.5,3024.4,0.241]
[1763423668853,0.2323,3024.1,3024.0,0.3816]
[1763423669055,0.2323,3024.1,3024.0,0.2428]
[1763423670257,0.2323,3024.1,3024.0,0.3869]
[1763423671358,0.85092225,3024.4,3024.3,0.2428]
[1763423672051,3.21094327,3024.5,3024.4,0.2428]
[1763423672559,0.00314327,3024.5,3024.4,0.2428]
[1763423673155,3.21276278,3025.0,3024.9,0.2428]
[1763423673353,0.00496278,3025.0,3024.9,0.2428]
[1763423674062,0.00787885,3025.0,3024.9,0.2428]
[1763423676055,0.2323,3024.7,3024.6,3.4506]
[1763423676263,0.15267885,3025.0,3024.6,3.4506]
[1763423676964,0.24017885,3025.0,3024.9,0.2428]
[1763423678960,0.00787885,3025.0,3024.9,0.2428]
[1763423682063,3.2078,3025.8,3025.7,0.2428]
[1763423682370,3.4401,3026.2,3026.1,0.2428]
[1763423682567,0.2323,3026.2,3026.1,0.2428]
[1763423682962,0.23505937,3026.2,3026.1,0.24708885]
[1763423683667,0.23505937,3026.2,3026.1,0.00428885]
[1763423684860,3.97876937,3026.2,3026.1,0.00428885]
[1763423685760,3.44285937,3026.2,3026.1,0.00428885]
[1763423686373,3.97876937,3026.2,3026.1,0.00428885]
[1763423687070,0.76826,3025.9,3025.8,0.00496278]
[1763423687272,0.2323,3025.9,3025.8,0.00496278]
[1763423688070,0.2323,3025.2,3024.7,3.2078]
[1763423688278,3.2078,3025.4,3024.7,3.4506]
[1763423689062,3.2078,3025.4,3024.7,3.45947827]
[1763423690573,0.2323,3025.4,3025.3,0.2428]
[1763423690778,0.2323,3025.5,3025.4,0.2428]
[1763423691370,0.3771,3025.5,3025.1,3.2078]
[1763423692674,0.3771,3025.5,3025.4,0.2428]
[1763423692975,0.2323,3025.5,3025.4,0.2428]
[1763423693366,0.3771,3025.5,3025.1,3.2078]
[1763423693978,0.3771,3025.5,3025.4,0.2428]
[1763423695379,0.2323,3025.5,3025.4,0.2428]
[1763423695773,0.3771,3025.5,3025.4,0.2428]
[1763423695976,0.3771,3025.5,3025.1,3.2078]
[1763423696377,0.3771,3025.5,3025.4,0.2428]
[1763423698676,0.83669818,3025.7,3025.6,0.2417]
[1763423698875,3.3526,3026.0,3025.5,0.1405]
[1763423698876,0.24435937,3026.2,3026.1,0.2417]
[1763423699481,0.24435937,3026.2,3025.6,3.2078]
[1763423700179,0.78026937,3026.2,3025.6,3.2078]
[1763423700380,0.53603,3025.6,3025.0,3.3519]
[1763423700572,0.2416,3025.5,3025.4,0.2417]
[1763423701074,0.2416,3025.5,3025.0,3.3519]
[1763423701075,0.3793,3025.5,3025.0,3.3519]
[1763423701688,0.83980062,3025.9,3025.4,0.2417]
[1763423702681,0.2416,3025.5,3025.4,0.2417]
[1763423703379,0.83980062,3025.9,3025.5,0.1405]
[1763423703580,1.08140062,3025.9,3025.8,0.2417]
[1763423703781,0.83980062,3025.9,3025.8,0.2417]
[1763423703975,0.24435937,3026.2,3026.1,0.2417]
[1763423705085,0.00275937,3026.2,3026.1,0.2417]
[1763423709489,0.1448,3027.0,3026.1,0.2417]
[1763423709490,3.4494,3027.3,3027.2,0.2417]
[1763423709686,0.2416,3026.8,3026.7,3.4495]
[1763423710281,0.00278324,3026.8,3026.7,0.00302999]
[1763423710588,0.00278324,3026.8,3026.7,0.2902385]
[1763423710887,0.24438324,3026.8,3026.7,0.2902385]
[1763423711490,0.24438324,3026.8,3026.7,0.56074836]
[1763423711989,0.24438324,3026.8,3026.7,0.31904836]
[1763423713786,0.00278324,3026.8,3026.7,0.56074836]
[1763423715793,0.00278324,3026.8,3026.7,8.57274836]
[1763423715993,0.00278324,3026.8,3026.7,0.56074836]
[1763423716289,0.24438324,3026.8,3026.7,0.0485385]
[1763423716496,0.78018324,3026.8,3026.7,0.0485385]
[1763423716795,0.24438324,3026.8,3026.7,0.0485385]
[1763423716989,0.24438324,3026.8,3026.7,0.2902385]
[1763423717398,0.24438324,3026.8,3026.7,0.0485385]
[1763423717701,0.24438324,3026.8,3026.7,0.56390796]
[1763423719590,0.24438324,3026.8,3026.7,0.32220796]
[1763423721798,0.78018324,3026.8,3026.7,0.0485385]
[1763423722095,0.78018324,3026.8,3025.7,3.2078]
[1763423722096,0.3898,3026.5,3025.7,3.2078]
[1763423722288,0.2379,3026.1,3025.7,3.2078]
[1763423722690,0.2379,3025.8,3025.7,3.4469]
[1763423722892,0.2379,3025.8,3025.7,0.2391]
[1763423723100,0.2379,3025.8,3025.7,0.24148726]
[1763423723490,0.2379,3025.8,3025.7,0.50367216]
[1763423723688,3.2078,3026.0,3025.9,0.2391]
[1763423723892,3.3597,3026.5,3026.0,0.1523]
[1763423724103,3.3597,3026.5,3026.4,0.2391]
[1763423724104,3.5976,3026.5,3026.4,0.2391]
[1763423724397,0.00278324,3026.8,3026.7,0.2391]
[1763423724597,1.07665997,3026.8,3026.7,0.2391]
[1763423725996,0.00278324,3026.8,3026.7,0.2391]
[1763423726500,0.24068324,3026.8,3026.7,0.2391]
[1763423726897,0.00278324,3026.8,3026.7,0.2391]
[1763423728203,0.25368324,3026.8,3026.7,0.2391]
[1763423731405,0.1406,3026.5,3026.1,3.2078]
[1763423731707,3.5993,3026.5,3026.4,0.2518]
[1763423732604,3.4587,3026.5,3026.4,0.2518]
[1763423732907,0.00278324,3026.8,3026.7,0.2518]
[1763423733106,1.09344061,3026.8,3026.7,0.2518]
[1763423733303,0.84254061,3026.8,3026.7,0.2518]
[1763423733910,0.00278324,3026.8,3026.7,0.2518]
[1763423734203,0.00496278,3027.1,3027.0,0.3996]
[1763423735302,0.00811422,3027.1,3027.0,0.3996]
[1763423737512,0.1519,3028.0,3027.0,0.3996]
[1763423737806,0.99160347,3028.0,3027.0,0.3996]
[1763423738209,1.52719347,3028.0,3027.3,3.2078]
[1763423738403,1.09060347,3027.9,3027.8,0.2518]
[1763423738806,1.09060347,3027.9,3027.5,0.1478]
[1763423739404,0.2509,3027.6,3027.5,0.3996]
[1763423740701,0.2509,3027.6,3027.5,0.2518]
[1763423743505,0.2509,3027.6,3027.3,3.21275433]
[1763423743506,0.2509,3027.4,3027.3,3.21275433]
[1763423744711,0.16017872,3028.0,3027.3,3.46455433]
[1763423744921,0.53561,3027.9,3027.3,3.46455433]
[1763423745225,1.08944791,3027.8,3027.7,0.2518]
[1763423746316,0.2509,3027.8,3027.7,0.2518]
[1763423746716,1.62507791,3027.8,3027.7,0.2518]
[1763423746923,0.2509,3027.6,3027.5,0.2518]
[1763423747125,0.2509,3027.8,3027.7,0.2518]
[1763423747619,1.08923414,3027.8,3027.7,0.2518]
[1763423747931,0.2509,3027.4,3027.3,0.25675433]
[1763423748429,0.2509,3027.4,3027.3,0.00495433]
[1763423748630,0.2509,3027.4,3027.3,0.25675433]
[1763423750020,0.7866,3027.4,3027.3,0.00495433]
[1763423751025,0.2509,3027.4,3027.3,0.00495433]
[1763423752031,0.2509,3027.4,3027.3,0.25675433]
[1763423753328,1.09005498,3027.4,3027.3,0.25675433]
[1763423754425,0.83915498,3027.4,3027.3,0.25675433]
[1763423754626,3.4587,3027.7,3027.6,0.2518]
[1763423754828,3.4587,3027.7,3027.3,0.00495433]
[1763423754829,0.2509,3027.4,3027.3,0.00495433]
[1763423755136,4.04726842,3027.7,3027.6,0.2518]
[1763423755137,3.4587,3027.7,3027.6,0.2518]
[1763423755339,4.29845814,3027.7,3027.6,0.2518]
[1763423755728,0.2509,3027.4,3027.3,0.25675433]
[1763423756625,1.08933139,3027.6,3027.5,0.2518]
[1763423757536,1.0894298,3027.6,3027.5,0.2518]
[1763423758324,0.0894298,3027.6,3027.5,0.4005]
[1763423758538,0.3424298,3027.6,3027.5,0.4005]
[1763423758732,0.3424298,3027.6,3027.5,0.2518]
[1763423758940,0.253,3027.4,3027.3,0.25635433]
[1763423759137,0.3382298,3027.6,3027.5,0.4001]
[1763423760339,0.7845,3027.4,3027.3,0.00495433]
[1763423760744,0.2488,3027.4,3027.3,0.00495433]
[1763423761135,0.2488,3027.4,3027.3,0.25635433]
[1763423762337,0.7845,3027.4,3027.3,0.00495433]
[1763423762528,0.2488,3027.4,3027.3,0.00495433]
[1763423764845,0.7845,3027.4,3027.3,0.00495433]
[1763423765047,0.2488,3027.4,3027.3,0.00495433]
[1763423766647,0.7845,3027.4,3027.3,0.00495433]
[1763423766953,0.2488,3026.6,3026.5,0.3992]
[1763423767447,3.4516,3026.8,3026.7,0.2514]
[1763423768449,0.2438,3026.6,3026.5,0.3992]
[1763423768846,3.2078,3027.2,3026.5,0.3992]
[1763423768847,3.74354,3027.2,3026.5,0.3992]
[1763423769553,0.53576,3027.1,3026.5,0.3992]
[1763423770352,0.83629385,3027.0,3026.5,0.3992]
[1763423771955,0.2438,3026.6,3026.5,0.3992]
[1763423772954,0.2438,3026.5,3026.4,0.00495433]
[1763423773255,1.08001431,3026.5,3026.4,0.00495433]
[1763423773456,3.4516,3026.7,3026.6,0.2514]
[1763423773665,0.2438,3026.6,3026.5,0.1487]
[1763423773957,0.2438,3026.5,3026.4,0.00495433]
[1763423774458,0.77966,3026.5,3026.4,0.00495433]
[1763423774655,1.61555887,3026.5,3026.4,0.00495433]
[1763423775550,0.2438,3025.8,3025.7,0.51597216]
[1763423775854,0.24629469,3025.8,3025.7,0.51597216]
[1763423776246,0.00249469,3025.8,3025.7,0.51597216]
[1763423776655,0.24629469,3025.8,3025.7,0.51597216]
[1763423777057,0.00249469,3025.8,3025.7,0.51597216]
[1763423777851,0.00495433,3026.1,3025.7,6.51597216]
[1763423778054,3.4541,3026.6,3026.5,0.4001]
[1763423778247,4.29008066,3026.6,3026.5,0.4001]
[1763423778450,4.04378066,3026.6,3026.5,0.4001]
[1763423778655,3.2078,3026.6,3026.5,0.4001]
[1763423778961,3.21143438,3026.6,3026.5,0.4001]
[1763423779858,0.00363438,3026.6,3026.5,3.6079]
[1763423782758,1.0854138,3027.4,3027.3,0.237]
[1763423783159,0.8349138,3027.4,3027.3,0.237]
[1763423783361,3.2078,3027.5,3027.4,0.237]
[1763423783560,4.29318905,3027.5,3027.4,0.237]
[1763423783763,4.2956064,3027.5,3027.4,0.237]
[1763423785762,3.21021735,3027.5,3027.4,0.237]
[1763423786264,0.00241735,3027.5,3027.4,3.4448]
[1763423797971,0.00241735,3027.5,3027.4,3.4531]
[1763423800778,3.74332,3028.5,3028.1,0.2453]
[1763423800977,0.83261234,3028.4,3028.1,0.2453]
[1763423801575,0.83548792,3028.4,3028.1,0.24867937]
[1763423801768,1.37100792,3028.4,3028.1,0.24867937]
[1763423801968,0.2312,3028.2,3028.1,0.24867937]
[1763423802671,0.23407558,3028.4,3028.3,0.2453]
[1763423803176,0.2312,3028.2,3028.1,0.24867937]
[1763423803578,0.23407558,3028.4,3028.3,0.2453]
[1763423804075,0.00287558,3028.4,3028.3,3.4531]
[1763423805771,0.23407558,3028.4,3028.3,3.2078]
[1763423806073,0.2312,3028.2,3028.1,0.00337937]
[1763423806380,0.76676,3028.2,3028.1,0.24867937]